Cogmind - Beta 16 *** ADVENTURER MODE // 2025.11.21 @ 11:39:42 Player: Pixelizer Result: Self-destructed Performance ------------- Evolutions (0) 0 Regions Visited (3) 600 Robots Destroyed (0) 0 Value Destroyed (0) 0 Prototype IDs (6) 120 Alien Tech Used (0) 0 Bonus (800) 800 TOTAL SCORE: 1520 Bonus ------- Registered with UFD 300 Met Optimus in HQ 500 Cogmind --------- Core Integrity 173/250 Matter 300/300 Energy 140/140 System Corruption 0% Temperature Cool (0) Movement Core (300) Ox5 Location -9/Scraptown Parts ------- > --- POWER (1) -------- Light Deuterium Engine > --- PROPULSION (2) --- Overtuned Titanium Leg Overtuned Titanium Leg > --- UTILITY (2) ------ Improved Heat Sink Small Storage Unit > --- WEAPON (2) ------- Overtuned Pulse Rifle Overtuned Pulse Rifle > --- INVENTORY (8) ---- Light Deuterium Engine Overtuned Pulse Rifle Overtuned Pulse Rifle Ripper Ripper Peak State ------------ > --- POWER ------------ Light Deuterium Engine > --- PROPULSION ------- Overtuned Titanium Leg Overtuned Titanium Leg > --- UTILITY ---------- Improved Heat Sink Small Storage Unit > --- WEAPON ----------- Overtuned Pulse Rifle Overtuned Pulse Rifle > --- INVENTORY -------- Light Deuterium Engine Overtuned Pulse Rifle Overtuned Pulse Rifle Ripper Ripper [Rating: 20] Favorites ----------- Power Light Ion Engine Engine Light Ion Engine Propulsion Light Treads Treads Light Treads Leg Overtuned Titanium Leg Utility Small Storage Unit Device Improved Heat Sink Storage Small Storage Unit Weapon Medium Laser Energy Gun Medium Laser Slashing Weapon Ripper Build | -11 -10 -10 -9 ------- Run | Yrd Mat Sub Scr Slots Evolved . | . . . . Power . | . . . . Propulsion . | . . . . Utility . | . . . . Weapon . | . . . . Parts Attached 15 | 6 . 2 7 Power 2 | 1 . . 1 Engine 2 | 1 . . 1 Core . | . . . . Reactor . | . . . . Propulsion 4 | 2 . . 2 Treads 2 | 2 . . . Leg 2 | . . . 2 Wheel . | . . . . Hover . | . . . . Flight . | . . . . Utility 2 | 1 . . 1 Device 1 | . . . 1 Storage 1 | 1 . . . Processor . | . . . . Hackware . | . . . . Protection . | . . . . Artifact . | . . . . Weapon 7 | 2 . 2 3 Energy Gun 5 | 2 . . 3 Energy Cannon . | . . . . Ballistic Gun . | . . . . Ballistic Cannon . | . . . . Launcher . | . . . . Special Weapon . | . . . . Impact Weapon . | . . . . Slashing Weapon 2 | . . 2 . Piercing Weapon . | . . . . Special Melee Weapon . | . . . . Unidentified Prototypes . | . . . . Parts Lost . | . . . . Power . | . . . . Propulsion . | . . . . Utility . | . . . . Weapon . | . . . . Highest Loss Streak . | . . . . To Critical Strikes . | . . . . Average Backups 4 | . 1 2 5 Power 1 | . 1 1 1 Propulsion . | . . . . Utility . | . . . . Weapon 3 | . . 1 3 Tool/Special . | . . . . Unused Backups 4 | . . . 4 Power 3 | . . . 3 Propulsion . | . . . . Utility . | . . . . Weapon 1 | . . . 1 Tool/Special . | . . . . Average Slot Usage (%) 66 | . 85 85 59 Engine 14 | . 14 14 14 Treads 26 | . 28 28 26 Leg 1 | . . . 1 Storage 14 | . 14 14 14 Energy Gun 8 | . 28 26 1 Peak Build Rating 20 | 6 6 12 20 Average Rating 6 | 4 6 6 5 On Entrance 6 | . 6 6 12 Avg Prop Armor Cover (%) 11 | . . . 11 Naked Turns . | . . . . Heaviest Build 17 | 11 11 14 17 Greatest Support 40 | 40 40 40 40 Greatest Overweight (x) . | . . . . Average Overweight (x) . | . . . . Largest Inventory Capacity 8 | 8 8 8 8 Average Capacity 7 | 6 8 8 8 Most Carried 6 | 1 1 3 6 Average Carried 4 | . 1 2 5 Final Capacity 8 | 8 8 8 8 Final Carried 5 | 1 1 3 5 Class Distribution -------------------- 94% | Mutant 5% | Scavenger-Mutant Dominant Class ---------------- Mutant | -10/Materials Mutant | -10/Subcaves Mutant | -9/Scraptown Resources | -11 -10 -10 -9 ----------- Run | Yrd Mat Sub Scr Matter Collected 357 | 216 . 41 100 Remotely . | . . . . Salvage Created . | . . . . Parts . | . . . . Haulers Intercepted . | . . . . Recyclers Shooed . | . . . . Parts Field Recycled . | . . . . Retrieved Matter . | . . . . Parts Self-Destructed 4 | . . 4 . Prevented . | . . . . Parts Restored . | . . . . Kills | -11 -10 -10 -9 ------- Run | Yrd Mat Sub Scr Combat Hostiles Destroyed . | . . . . Classes Destroyed . | . . . . Best Kill Streak . | . . . . Combat Bots Only . | . . . . Max Kills in Single Turn . | . . . . Gunslinging . | . . . . Exploded . | . . . . Melee . | . . . . Uniques/NPCs Destroyed . | . . . . Combat | -11 -10 -10 -9 -------- Run | Yrd Mat Sub Scr Hostile Shots Fired 18 | . . . 18 Missed 7 | . . . 7 Hits 11 | . . . 11 Projectile 11 | . . . 11 Critical Strikes 3 | . . . 3 Damage Taken 320 | . . 108 212 Core 77 | . . 18 59 Absorbed by Shields . | . . . . Ignored by Resistances 69 | . . 11 58 Core Remaining (%) 100 | 100 . . . Volleys Fired 5 | . . 2 3 Largest 2 | . . 2 2 Hottest 160 | . . 90 160 Shots Fired 9 | . . 4 5 Gun 9 | . . 4 5 Cannon . | . . . . Launcher . | . . . . Special . | . . . . Kinetic . | . . . . Thermal 9 | . . 4 5 Explosive . | . . . . Electromagnetic . | . . . . Robot Hit Streak 5 | . . . 5 Robot Miss Streak . | . . . . Penetration Max . | . . . . Secondary Targets . | . . . . Shots Hit Robots 5 | . . . 5 Core Hits 1 | . . . 1 Critical Kills . | . . . . Critical Parts Destroyed . | . . . . Critical Strikes . | . . . . Melee Attacks . | . . . . Impact . | . . . . Slashing . | . . . . Piercing . | . . . . Sneak Attacks . | . . . . Combat Hostiles . | . . . . Follow-up Attacks . | . . . . Damage Inflicted 119 | . 1 . 118 Guns 118 | . . . 118 Cannons . | . . . . Explosions . | . . . . Melee . | . . . . Ramming 1 | . 1 . . Kinetic . | . . . . Thermal 118 | . . . 118 Explosive . | . . . . Electromagnetic . | . . . . Impact . | . . . . Slashing . | . . . . Piercing . | . . . . Highest Corruption . | . . . . Average Corruption . | . . . . Corruption Purged . | . . . . Corruption Blocked . | . . . . Overload Shots . | . . . . Overflow Damage . | . . . . Projectiles . | . . . . Explosions . | . . . . Melee . | . . . . Knockbacks . | . . . . Impact . | . . . . Kinetic . | . . . . Secondary . | . . . . Self-Inflicted Damage . | . . . . Shots . | . . . . Rammed 1 | . 1 . . Targets Rammed 1 | . 1 . . Kicked . | . . . . Crushed . | . . . . Highest Temperature 281 | . . . 281 Average Temperature 139 | . . . 139 Received Heat Transfer 207 | . . . 207 Effects 1 | . . . 1 Energy Bleed 1 | . . . 1 Siege Activations . | . . . . Martial Activations . | . . . . Shielding Activations . | . . . . Robots Disrupted . | . . . . Combat Hostiles . | . . . . Robots Corrupted . | . . . . Combat Hostiles . | . . . . Parts Fried . | . . . . Impact Corruptions . | . . . . Robots Melted . | . . . . Combat Hostiles . | . . . . Parts Melted . | . . . . Heat Transferred 185 | . . . 185 Parts Sabotaged . | . . . . Parts Stolen . | . . . . Parts Stripped . | . . . . Power Chain Reactions . | . . . . Alert | -11 -10 -10 -9 ------- Run | Yrd Mat Sub Scr Maximum Alert Level . | . . . . Low Security (%) 100 | 100 100 . . Level 1 . | . . . . Level 2 . | . . . . Level 3 . | . . . . Level 4 . | . . . . Level 5 . | . . . . High Security . | . . . . Max Security . | . . . . Peak Influence . | . . . . Initial . | . . . . Average . | . . . . Influence Increases . | . . . . Influence Decreases . | . . . . Squads Dispatched . | . . . . Investigation . | . . . . Extermination . | . . . . Reinforcement . | . . . . Assault . | . . . . Garrison . | . . . . Intercept . | . . . . Searches Triggered . | . . . . Construction Impeded . | . . . . Haulers Reinforced . | . . . . Active Scanning Responses . | . . . . Cargo Convoy Interrupts . | . . . . Stealth | -11 -10 -10 -9 --------- Run | Yrd Mat Sub Scr Distress Signals . | . . . . Communications Jammed . | . . . . Distress Signals . | . . . . Times Spotted 20 | . 1 . 19 Peak Tracking Total 6 | . 1 . 6 Tactical Retreats 1 | . . . 1 Traps | -11 -10 -10 -9 ------- Run | Yrd Mat Sub Scr Traps Triggered 2 | . . 2 . Indirectly . | . . . . Trap Hack Attempts . | . . . . Triggered . | . . . . Disarmed . | . . . . Reprogrammed . | . . . . Reused . | . . . . Traps Extracted . | . . . . Installed . | . . . . Triggered . | . . . . Machines | -11 -10 -10 -9 ---------- Run | Yrd Mat Sub Scr Machines Disabled . | . . . . Max in Single Turn . | . . . . Machines Repaired . | . . . . Machines Dismantled . | . . . . Machines Sabotaged . | . . . . Overloaded Fab Kills . | . . . . Hacking | -11 -10 -10 -9 --------- Run | Yrd Mat Sub Scr Machines Accessed 12 | . . . 12 Terminals . | . . . . Fabricators . | . . . . Repair Stations . | . . . . Recycling Units . | . . . . Scanalyzers . | . . . . Garrison Access . | . . . . Total Hacks 97 | . . . 97 Successful 97 | . . . 97 Failed . | . . . . Catastrophic . | . . . . Database Lockouts . | . . . . Manual 1 | . . . 1 Terminals . | . . . . Fabricators . | . . . . Repair Stations . | . . . . Recycling Units . | . . . . Scanalyzers . | . . . . Garrison Access . | . . . . Terminal Hacks 97 | . . . 97 Record 88 | . . . 88 Robot Analysis 8 | . . . 8 Proto ID Catalog 1 | . . . 1 Fabricator Hacks . | . . . . Repair Station Hacks . | . . . . Recycling Unit Hacks . | . . . . Scanalyzer . | . . . . Garrison Access Hacks . | . . . . Unauthorized Hacks . | . . . . Terminals . | . . . . Fabricators . | . . . . Repair Stations . | . . . . Recycling Units . | . . . . Scanalyzers . | . . . . Garrison Access . | . . . . Data Cores Recovered . | . . . . Used . | . . . . Hacking Detections . | . . . . Full Trace Events . | . . . . Feedback Events . | . . . . Feedback Blocked . | . . . . Robot Schematics Acquired . | . . . . Robots Built . | . . . . Authchips . | . . . . Time . | . . . . Total Robot Build Rating . | . . . . Part Schematics Acquired . | . . . . Parts Built . | . . . . Authchips . | . . . . Time . | . . . . Total Part Build Rating . | . . . . Part Studies Acquired . | . . . . Parts Repaired . | . . . . Time . | . . . . Parts Recycled . | . . . . Recycled Matter . | . . . . Retrieved Matter . | . . . . Retrieved Components . | . . . . Parts Scanalyzed . | . . . . Part Schematics Acquired . | . . . . Parts Damaged . | . . . . Bothacking | -11 -10 -10 -9 ------------ Run | Yrd Mat Sub Scr Used RIF Installer . | . . . . Robots Hacked . | . . . . Non-combat . | . . . . Combat . | . . . . Robot Hacks Applied . | . . . . Relay Couplers Released . | . . . . Fabnet Peak Effective % . | . . . . Robots Rewired . | . . . . Allies Hacked . | . . . . Hacks Repelled . | . . . . Allies | -11 -10 -10 -9 -------- Run | Yrd Mat Sub Scr Total Allies . | . . . . Largest Group . | . . . . Highest-Rated Group . | . . . . Highest-Rated Ally . | . . . . Total Orders . | . . . . Ally Attacks . | . . . . Total Damage . | . . . . Kills . | . . . . Allies Corrupted . | . . . . Allies Melted 8 | . . . 8 Intel | -11 -10 -10 -9 ------- Run | Yrd Mat Sub Scr Active Infowar (turns) . | . . . . Robot Analysis Total 8 | . . . 8 Derelict Logs Recovered . | . . . . Drone Launches . | . . . . Drone Recoveries . | . . . . Exploration | -11 -10 -10 -9 ------------- Run | Yrd Mat Sub Scr Turns Passed 3208 | 71 133 708 2296 Spaces Moved 2007 | 41 83 436 1447 Core 3 | 3 . . . Treads 1884 | 38 83 436 1327 Legs 120 | . . . 120 Wheels . | . . . . Hover . | . . . . Flight . | . . . . Fastest Speed 50 | 50 160 160 100 Average Speed 156 | 151 160 160 155 Slowest Speed 160 | 160 160 160 160 Overloaded Moves . | . . . . Propulsion Burnouts . | . . . . Robots Hopped . | . . . . Potential Cave-ins . | . . . . Cave-ins Triggered . | . . . . Exploration Rate (%) 35 | 4 18 31 88 Regions Visited 3 Branch Regions 2 Pre-discovered Areas 5 | . . . 5 Known Exits Taken . | . . . . Unknown Exits Taken 3 | 1 1 1 . Scrap Searched 5 | . . 2 3 Spaces Dug . | . . . . Terrain Destroyed . | . . . . Melee . | . . . . Projectile . | . . . . AOE . | . . . . Terrain Rammed . | . . . . Walls Destroyed . | . . . . Machines Disabled . | . . . . Actions | -11 -10 -10 -9 --------- Run | Yrd Mat Sub Scr Total 2068 | 47 83 441 1497 Wait 26 | . . . 26 Move 2004 | 40 82 435 1447 Hop . | . . . . Pick Up 7 | 1 . 2 4 Fast Attach 11 | 6 . . 5 Attach . | . . . . Detach 2 | . . . 2 Swap 5 | . . 2 3 Drop 7 | . . . 7 Fire 5 | . . 2 3 Melee . | . . . . Ram . | . . . . Kick . | . . . . Crush 1 | . 1 . . Escape Stasis . | . . . . Rewire . | . . . . Trap . | . . . . Miscellaneous . | . . . . Route ------- -11/Scrapyard -10/Materials -10/Subcaves -9/Scraptown (discovered 2 exits: *Fac x2) History --------- Turn | Location | Event 4 | -11/Scrapyard | Discovered new exit (range 15) 72 | -11/Scrapyard | Entered Materials 73 | -10/Materials | Met a group of wandering Federalists 199 | -10/Materials | Discovered new exit (range 6) 205 | -10/Materials | Entered Subcaves 205 | -10/Subcaves | Accompanied by 2 allies 206 | -10/Subcaves | Continued accompanying wandering Federalists (6) 206 | -10/Subcaves | Approached by a straggling Scientist 229 | -10/Subcaves | Shifting Twisted Machinery released Ripper 255 | -10/Subcaves | Shifting Twisted Machinery released Piercing Trap 301 | -10/Subcaves | Build established: Mutant 368 | -10/Subcaves | Lost 3 allies 394 | -10/Subcaves | Curiously followed by a Cobbler waking with a query about "LVR3C" 913 | -10/Subcaves | Entered Scraptown 1322 | -9/Scraptown | Visited TADAMA 1365 | -9/Scraptown | Visited Cave Peace 1426 | -9/Scraptown | Visited The Evicted 1480 | -9/Scraptown | Visited UFD Registry 1480 | -9/Scraptown | Registered with UFD as "Hardnuts" 1541 | -9/Scraptown | Visited Cyclists 1552 | -9/Scraptown | Entered Cyclist Reading Room 1597 | -9/Scraptown | Visited Awakened 1645 | -9/Scraptown | Visited Fellowship of the Rings 1738 | -9/Scraptown | Discovered new exit (range 11) 2309 | -9/Scraptown | Visited Analyses Database 2351 | -9/Scraptown | Visited LU-1G1's Boring Crew 2418 | -9/Scraptown | Visited Science Guys 2762 | -9/Scraptown | Visited Abandonware Association 2794 | -9/Scraptown | Learned abandonware demo "ERRANTS.EXE" 2834 | -9/Scraptown | Visited Derelict Rescue Squad 2903 | -9/Scraptown | Met Optimus 2903 | -9/Scraptown | Accepted into 0bPrime 3003 | -9/Scraptown | Visited Science Testing Area 3030 | -9/Scraptown | Civil war broke out across Scraptown 3104 | -9/Scraptown | Identified exit to Factory 3133 | -9/Scraptown | Lost 7 allies 3159 | -9/Scraptown | Visited Cartography Club 3166 | -9/Scraptown | Learned location of Upper Caves (-4) 3166 | -9/Scraptown | Learned location of Quarantine (-2) 3166 | -9/Scraptown | Learned 8 Materials zone layouts 3166 | -9/Scraptown | Learned 16 Factory zone layouts 3166 | -9/Scraptown | Learned location of Proximity Caves (-6) 3166 | -9/Scraptown | Learned 12 Factory zone layouts 3166 | -9/Scraptown | Learned 20 Factory zone layouts 3166 | -9/Scraptown | Learned 24 Factory zone layouts 3166 | -9/Scraptown | Learned 12 Research zone layouts 3166 | -9/Scraptown | Learned 4 Access zone layouts 3166 | -9/Scraptown | Learned 8 Access zone layouts 3166 | -9/Scraptown | Learned 20 Proximity Caves zone layouts 3166 | -9/Scraptown | Learned location of 3 exits from Factory 3166 | -9/Scraptown | Learned location of 3 exits from Upper Caves 3166 | -9/Scraptown | Learned 4 Recycling zone layouts 3185 | -9/Scraptown | Lost 3 allies 3209 | -9/Scraptown | Self-destructed Last Messages --------------- Data stored: Factory entrances (x2). >>Record "ACCESS/UPP=1" Upper Caves entrance. Data stored: Upper Caves entrances (x1). >>Record "EXITS/UPP=3" Upper Caves exits. Data stored: Upper Caves exits (x3). >>Record "ZONES/REC=4" Recycling zones. Data stored: Recycling zone layouts (x4). 03168_ Ovr. Titanium Leg suddenly begins malfunctioning. Optimus: This place isn't worth defending, let's get out of here, Hardnuts! Our real resources are elsewhere, after all. 03195_ LY-PGB(j) suffers critical hit (Burn). 03196_ LY-PGB(j) switches sides. 03197_ LY-PGB(j) destroyed. 03208_ Ovr. Titanium Leg suddenly begins malfunctioning. Map ----- +----------------------------------------------------+ | ?????????????????????????????????????????????????? | | ?????????????????????????????????????????????? #? | | ?????????????????????????????????????????????? ? | | ?????????????????????????????????????????????? ? | | ?????????????????????????????????????????????? ? | | ?????????????????????????????????????????????? ? | | ?????????????????????????????????????????????? #? | | ?????????????????????????????????????????????? #? | | ?????????????????????????????????????????????# #? | | ###??????????????????????????????????????????# #? | | ""#???????????????????????????????????? ????# #? | | ""#?????????????????????????#?????????? ????# #? | | ""#????????###????????????"""""??????? ???# #? | | ""#????????#X#???????????""" ""??????? "???# #? | | "#????????# #??????????" "??????? ""??# #? | | "#????????# #??????????" "?????" ""?## #? | | "#???###### #######????? #????? " ?# #? | | ""#???# =%! #?????? "??????? ??# ## | | ""#???# *[ #??????? ????????? ???# # | | ""#???########## ###???????# #?????????# #???# ## | | ####???????##### ########### ########### ##### !## | | #???????#"""" """"""""""" """"""""" """ %*" | | #???????# /%! j ![= | | #???????#" ! *! [** | | #???????#" !%* | | #???????#" @ =! | | #???#####" ! ![ !%! | | #???#"""" =%"""""""""""""""""""""""""""" | | #???#""" ! """""""""""""""""""""""""" | | #???#"""" ###### ################"" | | #???#"""" =!= # ##????????#"" | | #???#""" !%! # X"#????????#"" | | ###?#"" *![ # "" "" ##????????#"" | | ""#"#"""" !%!%! # "" "" X"#??????###"" | | """"#"""" =*[!"# " " ######### #"" | | ""####### * *%! " | | ###????#!= =%! "" | | #########!!%=!= # " " ######### #"" | | [!%!=!=* "# "" "" ""#??????###"" | | =%[%%!!*[""# "" "" ##????????#"" | | =!* =%=%""# X"#????????#"" | | !=%!%[*!! "# ##????????#"" | | !![![%%%""###### ################"" | | ! %= !=!%"""""""""""""""""""""""""""" | | %[ =!= *=!"""""""""""""""""""""""""""" | | !!%= !*% =!* | | [% ! %! =! | | !! % !!= | | = #""""# !%* | | #????# *!=%= | +----------------------------------------------------+ Best States ------------- Heat Dissipation 39 Energy Generation 14 Energy Capacity 140 Matter Stores 300 Matter Capacity 300 Sight Range 16 Terrain Scan Density 10 Resistance: KI 20 Resistance: TH 20 Resistance: EX 20 Resistance: EM 20 Resistance: I 20 Resistance: S 20 Resistance: P 20 Evasion (%) 55 Recoil Reduction 2 Offensive Hacking 10 Item Schematics ----------------- None Robot Schematics ------------------ None Fabricated ------------ Nothing Repaired ---------- Nothing Studied --------- None Alien Tech Used ----------------- None Achievements -------------- Bob, First Of His Name Civilization 2243 Link The Feds Strength In Numbers Challenges ------------ None Game ------ Seed ProcessingCommLink Manual? 0 Play Time 00:23:25 Cumulative 4.0 hours Start 2025.11.21 @ 10:47:33 End 2025.11.21 @ 11:39:42 Sessions 3 Manual Loads 0 Difficulty Adventurer Special Mode None Game No. 16 Rogue 6 Adventurer 10 Explorer 0 Win Type - Total 0 Types 0/0/0/0/0/0/0/0/0/0 Lore% 11 Gallery% 9 Achievement% 10 Wizard Run 0 Options --------- Layout 1 ASCII 0 Keyboard 0 Movement Mouse Keybinds 0 Fullscreen 2 Font 24/Smallcaps Map View 50x35 Zoom Use 0% Tactical HUD 1 Map Filters NONE Filters NONE Steam 0 RUN: 38902c2b-21a9-45e6-ab75-78798ab5dd1a